Cogmind - Beta 9.6 @@@ ROGUE MODE // 2020.07.03 @ 05:43:21 Player: Kenzurith Result: Destroyed by S-43 Plague with Heavy Machine Gun Performance ------------- Evolutions (8) 4000 Regions Visited (20) 4000 Robots Destroyed (435) 2175 Value Destroyed (24767) 24767 Prototype IDs (38) 760 Alien Tech Used (0) 0 Bonus (13443) 13443 TOTAL SCORE: 49145 Bonus ------- Triggered High Security 500 High Alert Combat Kills 7847 Follower Combat Kills 1429 Entered Garrisons 1000 Used RIF Installer 2500 Aligned with FarCom 300 Scanned by Researcher 500 Friendly Fire -633 Cogmind --------- Core Integrity 0/1450 Matter 297/300 Energy 98/100 System Corruption 28% Temperature Cool (0) Movement Core (50) Location -2/Research Parts ------- > --- POWER (3) -------- (None) > --- PROPULSION (6) --- (None) > --- UTILITY (11) ----- (None) > --- WEAPON (3) ------- (None) > --- INVENTORY (4) ---- Damper Plating Improved KE Penetrator Peak State ------------ > --- POWER ------------ Particle Reactor Light Quantum Reactor Light Quantum Reactor > --- PROPULSION ------- Medium Treads Advanced Medium Treads Advanced Heavy Treads Advanced Heavy Treads > --- UTILITY ---------- Advanced Heat Sink Advanced Heat Sink Advanced Coolant Injector High-capacity Storage Unit High-capacity Storage Unit Advanced Matter Compressor Advanced Signal Interpreter Advanced Target Analyzer Quantum Capacitor Advanced Force Field > --- WEAPON ----------- Nova Cannon Guided Micro-nuke Launcher > --- INVENTORY -------- Light Quantum Reactor Light Quantum Reactor Experimental Energy Well Damper Plating Advanced Force Field Advanced Force Field Relay Coupler [Sentry] Enhanced Nova Cannon Enhanced Nova Cannon KE Penetrator Railgun Railgun Improved KE Penetrator Tri-rail Accelerator Power Sword [Rating: 169] Favorites ----------- Power Particle Reactor Engine Ion Engine Power Core Micro Fission Core Reactor Particle Reactor Propulsion Aluminum Leg Treads Light Treads Leg Aluminum Leg Wheel Armored Huge Wheel Utility High-capacity Storage Unit Device Advanced Heat Sink Storage High-capacity Storage Unit Processor Advanced Targeting Computer Hackware Relay Coupler [Grunt] Protection Improved Medium Armor Plating Weapon Flak Gun Energy Gun Tesla Rifle Energy Cannon Nova Cannon Ballistic Gun Flak Gun Ballistic Cannon Gauss Cannon Launcher Rocket Launcher Special Weapon Remote Datajack Slashing Weapon Scythe Special Melee Weapon Datajack Build | -11 -10 -10 -10 -9 -8 -8 -7 -7 -7 -7 -7 -7 -6 -6 -5 -5 -4 -4 -3 -2 ------- Run | Scr Mat Min Exi Min Mat Gar Fac Was Fac Gar Fac Gar Fac Gar Fac Ext Fac Gar Res Res Slots Evolved 16 | . . . . . 4 . 2 . . . . . 2 . 2 . 2 . 2 2 Power 2 | . . . . . . . . . . . . . . . . . . . 2 . Propulsion 4 | . . . . . 1 . 1 . . . . . . . . . . . . 2 Utility 9 | . . . . . 3 . 1 . . . . . 2 . 2 . 1 . . . Weapon 1 | . . . . . . . . . . . . . . . . . 1 . . . Parts Attached 790 | . 37 3 10 9 33 31 20 9 1 46 5 38 50 55 71 55 80 66 48 123 Power 70 | . 15 . . 1 5 1 1 1 . 3 . 4 3 2 4 . 4 3 4 19 Engine 29 | . 15 . . 1 3 1 1 . . 1 . 2 2 1 2 . . . . . Core 10 | . . . . . 2 . . . . . . 1 1 1 2 . 1 1 . 1 Reactor 31 | . . . . . . . . 1 . 2 . 1 . . . . 3 2 4 18 Propulsion 170 | . 5 . 5 1 13 15 5 3 . 11 . 14 6 15 6 18 20 17 11 5 Treads 58 | . . . . . . 6 5 3 . 10 . 2 2 . . 5 8 6 6 5 Leg 111 | . 5 . 5 1 13 9 . . . 1 . 12 4 15 5 13 12 11 5 . Wheel 1 | . . . . . . . . . . . . . . . 1 . . . . . Hover . | . . . . . . . . . . . . . . . . . . . . . Flight . | . . . . . . . . . . . . . . . . . . . . . Utility 217 | . 3 2 2 . 9 4 4 2 . 12 1 4 19 10 22 13 30 17 16 47 Device 105 | . . . . . 4 . . . . 2 . . 10 2 11 10 19 10 9 28 Storage 20 | . 3 2 2 . 4 1 . . . . 1 . . . 1 . 1 1 . 4 Processor 15 | . . . . . . . . . . . . . 2 . 3 . 6 . 2 2 Hackware 32 | . . . . . . 1 1 . . 8 . 4 2 6 2 2 2 1 1 2 Protection 45 | . . . . . 1 2 3 2 . 2 . . 5 2 5 1 2 5 4 11 Artifact . | . . . . . . . . . . . . . . . . . . . . . Weapon 333 | . 14 1 3 7 6 11 10 3 1 20 4 16 22 28 39 24 26 29 17 52 Energy Gun 57 | . 1 . . . 5 5 . . . . . . 6 6 7 7 6 11 3 . Energy Cannon 39 | . 4 . 1 . 1 . 1 . . . . . 1 . 3 4 3 . 3 18 Ballistic Gun 111 | . 5 1 2 3 . . 6 1 1 13 2 3 4 12 8 5 11 9 10 15 Ballistic Cannon 19 | . . . . . . . . . . . 1 6 1 . 6 . . . . 5 Launcher 35 | . 2 . . 2 . 5 1 . . 1 . 2 4 3 1 1 1 3 . 9 Special Weapon 54 | . . . . . . . 2 1 . 5 1 4 5 5 10 7 4 4 1 5 Impact Weapon . | . . . . . . . . . . . . . . . . . . . . . Slashing Weapon 17 | . 2 . . 2 . . . 1 . 1 . 1 1 2 4 . 1 2 . . Piercing Weapon . | . . . . . . . . . . . . . . . . . . . . . Special Melee Weapon 1 | . . . . . . 1 . . . . . . . . . . . . . . Unidentified Prototypes 14 | . . . 1 . 1 . 1 . . . . . 1 . 2 . . . 2 6 Parts Lost 122 | . 2 1 . 3 6 7 . . . . . 4 17 7 18 8 7 21 1 20 Power 14 | . 1 . . 1 . 1 . . . . . 2 2 . 2 . . 2 . 3 Propulsion 24 | . . . . . 1 1 . . . . . 1 3 3 3 3 . 3 . 6 Utility 36 | . . . . . 1 1 . . . . . 1 6 2 9 1 2 8 1 4 Weapon 48 | . 1 1 . 2 4 4 . . . . . . 6 2 4 4 5 8 . 7 Highest Loss Streak 16 | . 1 1 . 3 3 4 . . . . . 2 12 4 4 5 3 16 1 10 Average Slot Usage (%) 91 | . 98 98 99 90 95 96 99 74 69 90 84 89 85 94 91 99 91 95 93 82 Engine 3 | . 13 14 14 14 7 8 7 3 . . . . 2 . 2 . . . . . Core 1 | . . . . . 1 . . . . . . . 3 5 2 5 3 . . . Reactor 3 | . . . . . . . . 3 7 7 7 2 . . . . 1 4 13 12 Treads 7 | . . . . . . 1 30 17 15 21 15 2 5 . . 3 8 8 4 13 Leg 13 | . 27 28 28 28 27 25 . . . . . 23 12 25 14 19 5 11 9 . Device 8 | . . . . . 14 7 . . . 2 . . 8 4 11 16 17 14 13 15 Storage 20 | . 27 28 28 28 25 27 23 23 23 23 23 23 20 20 17 17 15 15 14 12 Processor 5 | . . . . . . . . . . . . . . 6 5 10 13 15 14 10 Hackware 8 | . . . . . . 3 7 3 . 16 23 21 13 14 15 10 6 7 4 3 Protection 2 | . . . . . 2 7 14 7 7 2 . . 4 2 2 1 . 1 3 2 Energy Gun 2 | . 1 . . . 8 11 . . . . . . 4 2 2 5 2 3 . . Energy Cannon 1 | . 9 8 . . 4 . 1 . . . . . . . . . . . . 4 Ballistic Gun 8 | . 11 18 27 14 3 . 12 . 13 12 6 6 3 6 2 1 9 8 13 5 Slashing Weapon 1 | . 3 . . 4 . . . 6 . . . . . 1 . . 1 . . . Naked Turns 54 | . . . . . . . . . . . . . . . . . . . . 54 Heaviest Build 196 | 12 42 57 71 72 100 118 135 164 165 165 123 123 160 128 160 123 158 155 185 196 Greatest Support 215 | 20 20 20 20 20 51 60 80 140 140 140 140 140 140 66 74 140 140 103 140 215 Greatest Overweight (x) 31 | . 4 2 3 3 2 5 1 1 1 3 . 8 31 7 6 2 2 6 7 1 Average Overweight (x) 1 | . 1 2 2 3 1 1 1 . 1 . . 1 1 1 3 . . 1 1 . Largest Inventory Capacity 28 | . 16 18 20 20 26 28 28 28 28 28 28 28 28 28 28 28 28 28 28 28 Average Capacity 26 | . 15 17 18 20 23 27 28 28 28 28 28 28 28 28 28 28 28 28 28 26 Most Carried 28 | . 16 18 20 20 26 28 28 28 28 28 28 28 28 28 28 28 28 28 28 28 Average Carried 25 | . 14 16 18 19 22 27 27 27 28 27 28 27 25 27 27 27 27 26 27 25 Final Capacity 28 | 6 16 18 20 20 26 28 28 28 28 28 28 28 28 28 28 28 28 28 28 4 Final Carried 28 | 6 16 18 20 20 26 28 28 28 28 28 28 28 28 28 28 28 27 28 28 4 Class Distribution -------------------- 41% | Bothacker-Mutant 13% | Hauler-Mutant 10% | Scavenger-Mutant 6% | Mutant 6% | Scavenger-Gunner 5% | Bothacker-Gunner 5% | Botlord-Gunner 5% | Botlord-Mutant Dominant Class ---------------- Mutant | -10/Materials Mutant | -10/Mines Scavenger-Mutant | -10/Exiles Hauler-Mutant | -9/Mines Scavenger-Mutant | -8/Materials Hauler-Mutant | -8/Garrison Hauler-Mutant | -7/Factory Bothacker-Mutant | -7/Waste Bothacker-Mutant | -7/Factory Bothacker-Mutant | -7/Garrison Bothacker-Mutant | -7/Factory Bothacker-Mutant | -7/Garrison Bothacker-Mutant | -6/Factory Bothacker-Mutant | -6/Garrison Botlord-Mutant | -5/Factory Bothacker-Mutant | -5/Extension Scavenger-Gunner | -4/Factory Botlord-Gunner | -4/Garrison Botlord-Gunner | -3/Research Bothacker-Gunner | -2/Research Resources | -11 -10 -10 -10 -9 -8 -8 -7 -7 -7 -7 -7 -7 -6 -6 -5 -5 -4 -4 -3 -2 ----------- Run | Scr Mat Min Exi Min Mat Gar Fac Was Fac Gar Fac Gar Fac Gar Fac Ext Fac Gar Res Res Matter Collected 17310 | 195 525 169 218 125 333 317 632 146 . 1328 140 924 972 1321 1362 995 1786 1199 846 3777 Remotely 93 | . . . . . . . . . . . . . . . . . . . . 93 Salvage Created 22321 | . 595 . . 121 735 506 888 1649 . 722 114 619 1172 793 1597 1316 2589 1523 1151 6231 Parts 975 | . 36 . . 2 24 19 57 20 . 34 10 26 62 46 57 56 118 65 47 296 Haulers Intercepted 5 | . 1 . . . 1 . 1 . . . . . . . . . . . 1 1 Recyclers Shooed 21 | . 3 . . . . . 3 . . . . . 3 . 1 3 4 . 3 1 Parts Field Recycled . | . . . . . . . . . . . . . . . . . . . . . Retrieved Matter . | . . . . . . . . . . . . . . . . . . . . . Parts Self-Destructed . | . . . . . . . . . . . . . . . . . . . . . Prevented . | . . . . . . . . . . . . . . . . . . . . . Kills | -11 -10 -10 -10 -9 -8 -8 -7 -7 -7 -7 -7 -7 -6 -6 -5 -5 -4 -4 -3 -2 ------- Run | Scr Mat Min Exi Min Mat Gar Fac Was Fac Gar Fac Gar Fac Gar Fac Ext Fac Gar Res Res Combat Hostiles Destroyed 359 | . 15 . . 5 14 16 14 6 . 13 2 19 22 25 29 17 32 27 9 94 Melee 17 | . . . . 2 . . . 6 . . . . . 3 1 . 1 3 . 1 Guns 159 | . 10 . . 1 11 7 9 . . 9 . 9 11 12 13 11 24 13 9 10 Cannons 75 | . 2 . . . 1 . 1 . . . 2 4 . . 9 2 2 . . 52 AOE 84 | . 3 . . 2 1 8 4 . . 4 . 6 11 10 2 2 2 7 . 22 Classes Destroyed 23 | . 6 . . 1 3 . 3 1 . . . . 2 1 1 1 1 . . 3 Worker 14 | . . . . . 1 . 1 . . . . . 4 . 2 . 1 . . 5 Builder 11 | . . . . . . . . . . . . . 1 . . 3 1 . 1 5 Tunneler 7 | . . . . . . . 1 . . . 2 . . . . . 1 . . 3 Hauler 5 | . 1 . . . 1 . 1 . . . . . . . . . . . 1 1 Recycler 21 | . 2 . . 1 1 . 3 . . . . . 3 . 1 2 3 . 2 3 Carrier 1 | . . . . . . . . . . . . . . . . . 1 . . . Mechanic 4 | . . . . . . . . . . . . . 1 . . . . . . 3 Operator 1 | . 1 . . . . . . . . . . . . . . . . . . . Watcher 8 | . 1 . . . . . . . . . . . 1 . . 2 1 . . 3 Swarmer 63 | . 9 . . 1 3 4 4 . . 3 . 1 2 7 4 2 6 8 . 9 Saboteur 7 | . . . . . . . . . . . . . . 3 . . 1 . . 3 Grunt 126 | . 6 . . . 8 12 4 . . 4 . 14 10 9 8 8 8 11 . 24 Brawler 13 | . . . . . . . . . . . . . . . 2 1 1 . . 9 Duelist 17 | . . . . . 1 . . . . . . 2 4 2 1 . . 1 . 6 Protector 3 | . . . . . . . . . . . . . . . . . . . . 3 Sentry 34 | . . . . . 2 . 1 . . 5 1 . 1 2 5 3 3 4 4 3 Hunter 29 | . . . . . . . 1 . . 1 . 2 2 2 . 2 6 . 2 11 Programmer 57 | . . . . . . . 4 . . 1 1 . 3 . 9 . 9 2 3 25 Behemoth 2 | . . . . . . . . . . . . . . . . 1 . 1 . . Compactor 6 | . . . . . . . . 6 . . . . . . . . . . . . Investigator 1 | . . . . . . . . . . . . . . . . . . . . 1 Executioner 1 | . . . . . . . . . . . . . . . . . . . . 1 Assembled 4 | . . . . 4 . . . . . . . . . . . . . . . . Best Kill Streak 12 | . 5 . . 4 3 7 4 1 . 4 3 6 11 7 6 4 6 6 4 12 Combat Bots Only 9 | . 5 . . 4 3 7 4 1 . 4 1 6 6 7 6 3 5 6 3 9 Max Kills in Single Turn 5 | . 3 . . 1 2 2 4 1 . 2 1 2 4 3 2 2 2 3 1 5 Gunslinging 1 | . . . . . . . . . . . . . . . . . . 1 . . Exploded 4 | . 3 . . 1 1 2 4 . . 2 . 2 2 3 1 2 2 3 . 4 Melee 1 | . . . . 1 . . . 1 . . . . . 1 1 . 1 1 . 1 Uniques/NPCs Destroyed . | . . . . . . . . . . . . . . . . . . . . . Combat | -11 -10 -10 -10 -9 -8 -8 -7 -7 -7 -7 -7 -7 -6 -6 -5 -5 -4 -4 -3 -2 -------- Run | Scr Mat Min Exi Min Mat Gar Fac Was Fac Gar Fac Gar Fac Gar Fac Ext Fac Gar Res Res Damage Taken 29818 | . 621 62 . 416 1300 1160 648 . . 1212 30 1201 3369 910 3135 1461 2944 3526 781 7042 Core 4204 | . 92 7 . 117 256 76 69 . . 125 . 87 519 50 282 196 348 367 145 1468 Absorbed by Shields 6040 | . . . . . . 73 . . . . . . 158 175 . 293 571 276 368 4126 Reduced by Siege Mode 792 | . . . . . . . . . . 29 . . 28 . . . 62 . 8 665 Core Remaining (%) 52 | 100 . . . 13 . 39 . . . . . 59 . 33 . 52 . 37 88 . Volleys Fired 1289 | . 79 7 . 11 79 61 39 6 . 49 4 64 90 66 114 87 119 86 48 280 Largest 3 | . 2 2 . 2 2 2 2 1 . 2 2 2 2 2 2 2 3 3 3 3 Hottest 221 | . 80 80 . 40 135 120 108 30 . 56 76 87 150 103 113 134 164 196 221 207 Shots Fired 2186 | . 125 10 . 12 135 88 76 6 . 82 6 105 120 90 194 129 277 147 144 440 Gun 1460 | . 82 7 . 10 86 78 70 . . 71 2 52 87 70 99 83 249 139 144 131 Cannon 559 | . 42 3 . . 49 . 4 . . . 3 43 8 . 80 33 17 . . 277 Launcher 84 | . 1 . . 2 . 10 1 . . 2 . 7 16 14 1 1 1 6 . 22 Special 83 | . . . . . . . 1 6 . 9 1 3 9 6 14 12 10 2 . 10 Kinetic 1173 | . 68 7 . 10 28 . 70 . . 71 5 95 19 46 114 53 219 73 124 171 Thermal 652 | . 56 3 . . 107 78 4 . . . . . 76 24 28 39 14 24 20 179 Explosive 84 | . 1 . . 2 . 10 1 . . 2 . 7 16 14 1 1 1 6 . 22 Electromagnetic 194 | . . . . . . . . . . . . . . . 37 24 33 42 . 58 Robot Hit Streak 51 | . 12 2 . 4 9 12 11 6 . 24 16 19 18 11 23 15 25 31 14 51 Robot Miss Streak 8 | . 2 2 . 3 3 2 6 . . 6 . 3 7 8 2 2 3 3 3 3 Penetration Max 2 | . . . . . . . . . . . . 1 . . 1 1 2 1 1 2 Secondary Targets 14 | . . . . . 1 . . . . . . . . . 2 . 8 1 2 . Max Gunslinging Chain 1 | . . . . . 1 . . . . . . . . . 1 . 1 1 1 . Capacitor 88 | . . . . . . . . . . . . . . . . . . . . 88 Shots Hit Robots 1696 | . 72 4 . 9 85 53 68 109 . 64 5 56 100 68 152 98 210 116 99 328 Core Hits 991 | . 29 2 . 12 30 30 73 11 . 62 4 37 141 80 53 38 76 56 32 225 Critical Hits 103 | . . . . 1 . . . 7 . 2 1 8 . . 3 6 12 13 16 34 Critical Kills 39 | . . . . 1 . . . 1 . . 1 3 . . 1 2 6 5 8 11 Critical Parts Destroyed 52 | . . . . . . . . 1 . 2 . 5 . . 2 3 6 6 7 20 Melee Attacks 189 | . 7 . . 4 . 1 . 103 . 15 . 5 . 13 20 . . 21 . . Impact . | . . . . . . . . . . . . . . . . . . . . . Slashing 188 | . 7 . . 4 . . . 103 . 15 . 5 . 13 20 . . 21 . . Piercing . | . . . . . . . . . . . . . . . . . . . . . Sneak Attacks 105 | . . . . . . . . 103 . . . . . 1 1 . . . . . Combat Hostiles 104 | . . . . . . . . 103 . . . . . 1 . . . . . . Follow-up Attacks . | . . . . . . . . . . . . . . . . . . . . . Damage Inflicted 58561 | . 1034 52 . 310 1592 1437 1592 4673 . 1776 258 1959 4000 2519 4192 2606 5230 3657 2635 19039 Guns 24192 | . 596 35 . 49 750 781 1260 . . 1305 28 727 1524 987 1964 1628 4402 2210 2635 3311 Cannons 13400 | . 266 17 . . 701 . 80 . . . 97 565 116 . 1631 714 457 . . 8756 Explosions 14828 | . 172 . . 203 141 656 252 . . 261 133 667 2344 1306 251 264 369 914 . 6895 Melee 5894 | . . . . 58 . . . 4673 . 210 . . . 226 211 . . 516 . . Ramming 247 | . . . . . . . . . . . . . 16 . 135 . 2 17 . 77 Kinetic 21297 | . 496 35 . 49 166 . 1260 . . 1305 125 1292 407 538 2161 1076 3851 1067 2142 5327 Thermal 11901 | . 366 17 . . 1426 781 80 . . . . . 1432 449 592 793 366 469 493 4637 Explosive 14258 | . 172 . . 203 . 656 210 . . 261 133 667 2145 1306 204 177 369 860 . 6895 Electromagnetic 4964 | . . . . . . . 42 . . . . . . . 889 560 642 728 . 2103 Impact . | . . . . . . . . . . . . . . . . . . . . . Slashing 5894 | . . . . 58 . . . 4673 . 210 . . . 226 211 . . 516 . . Piercing . | . . . . . . . . . . . . . . . . . . . . . Highest Corruption 29 | . . . . . . . 3 27 27 29 29 29 . . 17 17 11 11 1 28 Average Corruption 15 | . . . . . . . 1 22 27 28 29 29 . . 11 17 2 11 1 12 Corruption Purged . | . . . . . . . . . . . . . . . . . . . . . Effects 1047 | . . . . . . . 10 76 4 199 38 188 . . 84 90 38 125 2 193 Message Errors 157 | . . . . . . . 4 16 2 28 7 21 . . 16 6 8 21 1 27 Matter Fused 167 | . . . . . . . 1 6 1 35 7 31 . . 19 12 5 21 . 29 Heat Flow Errors 84 | . . . . . . . 1 10 . 12 2 18 . . 4 5 7 12 . 13 Energy Discharges 81 | . . . . . . . 2 5 . 21 2 14 . . 7 7 5 6 . 12 Parts Rejected 4 | . . . . . . . . . . 1 . 1 . . . . . 2 . . Data Loss (minor) 73 | . . . . . . . 1 4 . 9 5 9 . . 5 5 4 16 . 15 Data Loss (major) 37 | . . . . . . . . 2 . 10 . 7 . . 1 6 1 5 . 5 Misfires 23 | . . . . . . . . . . 7 . 3 . . 2 1 . 5 . 5 Alerts 17 | . . . . . . . . 2 . 3 1 4 . . 1 1 . 3 . 2 Misdirections 148 | . . . . . . . . 11 1 35 12 36 . . 8 12 . 16 . 17 Targeting Errors 213 | . . . . . . . 1 20 . 32 1 36 . . 21 28 7 13 1 53 Weapon Failures 43 | . . . . . . . . . . 6 1 8 . . . 7 1 5 . 15 Overload Shots . | . . . . . . . . . . . . . . . . . . . . . Overflow Damage 1189 | . 13 . . 9 24 31 . . . . 12 35 111 90 92 40 36 10 . 686 Projectiles 366 | . 9 . . . 24 . . . . . . . . . 21 13 . . . 299 Explosions 732 | . 4 . . 9 . 31 . . . . 12 35 111 60 10 27 36 10 . 387 Melee 91 | . . . . . . . . . . . . . . 30 61 . . . . . Knockbacks 36 | . . . . . . . . . . . . 7 . . 15 2 . . . 12 Impact 1 | . . . . . . . . . . . . . . . . . . . . 1 Kinetic 33 | . . . . . . . . . . . . 7 . . 13 2 . . . 11 Secondary 2 | . . . . . . . . . . . . . . . 2 . . . . . Self-Inflicted Damage 703 | . 35 . . 34 . 236 61 . . . . 98 37 26 118 . 5 20 . 33 Shots 20 | . 1 . . 2 . 7 2 . . . . 2 1 1 1 . 1 1 . 1 Rammed 18 | . . . . . . . . . . . . . 2 . 8 . . 3 . 5 Targets Rammed 20 | . . . . . . . . . . . . . 2 . 8 . 1 3 . 6 Kicked . | . . . . . . . . . . . . . . . . . . . . . Crushed 2 | . . . . . . . . . . . . . . . . . 1 . . 1 Highest Temperature 481 | . 304 80 . 20 195 199 178 257 . 254 223 266 294 205 320 259 261 481 323 291 Average Temperature 90 | . 83 43 . 12 100 109 39 95 . 81 83 81 108 68 80 40 79 140 152 80 Received Heat Transfer 5588 | . 186 12 . 60 450 492 159 . . 366 . 351 699 199 408 352 377 672 60 745 Effects 7 | . 1 . . . . . . . . . . 1 . . 1 . . 3 . 1 Shutdowns 1 | . . . . . . . . . . . . . . . . . . 1 . . Energy Bleed 4 | . 1 . . . . . . . . . . 1 . . 1 . . . . 1 Interference 2 | . . . . . . . . . . . . . . . . . . 2 . . Siege Activations 32 | . . . . . . . . . . 3 . 1 1 . . . 4 . 1 22 Total Turns 647 | . . . . . . . . . . 49 . 19 2 . . . 81 . 16 480 Longest Duration 64 | . . . . . . . . . . 40 . 19 2 . . . 35 . 16 64 Robots Corrupted 23 | . . . . . . . . . . . . . . . 4 2 4 4 . 9 Combat Hostiles 22 | . . . . . . . . . . . . . . . 4 2 3 4 . 9 Parts Fried 33 | . . . . . . . . . . . . . . . 2 2 7 6 . 16 Impact Corruptions 1 | . . . . . . . . . . . . . . . 1 . . . . . Robots Melted 2 | . . . . . 1 1 . . . . . . . . . . . . . . Combat Hostiles 2 | . . . . . 1 1 . . . . . . . . . . . . . . Parts Melted 18 | . 2 . . . 5 2 . . . . . . . . . . . 2 1 6 Heat Transferred 14478 | . 851 37 . . 2431 1579 150 . . . . . 1270 446 790 1284 537 757 592 3754 Parts Sabotaged 12 | . . . . . . . . . . . . . . 4 . 3 2 . . 3 Parts Stolen . | . . . . . . . . . . . . . . . . . . . . . Parts Stripped . | . . . . . . . . . . . . . . . . . . . . . Power Chain Reactions 3 | . . . . . . . . . . . . . . . 1 1 . 1 . . Missiles Intercepted . | . . . . . . . . . . . . . . . . . . . . . Alert | -11 -10 -10 -10 -9 -8 -8 -7 -7 -7 -7 -7 -7 -6 -6 -5 -5 -4 -4 -3 -2 ------- Run | Scr Mat Min Exi Min Mat Gar Fac Was Fac Gar Fac Gar Fac Gar Fac Ext Fac Gar Res Res Peak Influence 2555 | . 325 117 . 78 177 656 444 705 388 954 1104 1452 1096 990 859 751 858 1159 929 2555 Average Influence 597 | . 66 18 . 5 59 448 321 544 388 731 605 1151 740 739 697 590 411 960 748 799 Maximum Alert Level 5 | . 1 . . . . 2 2 3 1 3 4 4 3 3 3 3 3 4 3 5 Low Security (%) 20 | . 92 100 . 100 100 16 . 5 . . . . . . . . 18 . . 11 Level 1 16 | . 7 . . . . 5 94 8 100 13 . . 1 10 . . 47 . . 32 Level 2 23 | . . . . . . 78 5 63 . 35 69 3 23 30 39 80 16 7 30 16 Level 3 28 | . . . . . . . . 21 . 50 26 29 74 59 60 18 17 54 69 14 Level 4 8 | . . . . . . . . . . . 3 66 . . . . . 38 . 6 Level 5 1 | . . . . . . . . . . . . . . . . . . . . 8 High Security 1 | . . . . . . . . . . . . . . . . . . . . 10 Max Security . | . . . . . . . . . . . . . . . . . . . . . Squads Dispatched 88 | . 1 . . . 1 . 5 . . . 2 . 12 . 11 6 9 . 5 36 Investigation 7 | . . . . . . . 1 . . . . . 1 . 2 2 1 . . . Extermination 24 | . . . . . . . 3 . . . 1 . 1 . 4 . 5 . 1 9 Reinforcement 18 | . 1 . . . . . 1 . . . . . 4 . 3 3 . . 1 5 Assault 31 | . . . . . . . . . . . 1 . 3 . 2 1 2 . 1 21 Garrison 8 | . . . . . 1 . . . . . . . 3 . . . 1 . 2 1 Intercept . | . . . . . . . . . . . . . . . . . . . . . Construction Impeded 10 | . . . . . . . . . . . . . 3 . 1 3 . . . 3 Haulers Reinforced 2 | . . . . . . . . . . . . . . . 1 . . . 1 . Alert ID Control Effect 7 | . . . . . . . . . . . . 1 . 2 . 1 2 1 . . Stealth | -11 -10 -10 -10 -9 -8 -8 -7 -7 -7 -7 -7 -7 -6 -6 -5 -5 -4 -4 -3 -2 --------- Run | Scr Mat Min Exi Min Mat Gar Fac Was Fac Gar Fac Gar Fac Gar Fac Ext Fac Gar Res Res Distress Signals 15 | . 1 . . . . . . . . . . . 1 . 2 2 2 . 2 5 Communications Jammed . | . . . . . . . . . . . . . . . . . . . . . Distress Signals . | . . . . . . . . . . . . . . . . . . . . . Times Spotted 612 | . 27 5 . 6 16 14 21 6 . 23 2 38 46 36 58 43 59 35 14 163 Peak Tracking Total 24 | . 5 3 . 4 4 5 5 2 . 5 1 9 8 7 7 6 6 8 4 24 Tactical Retreats 50 | . . . . . 1 . . . . . . 18 . 10 4 4 . 6 1 6 Traps | -11 -10 -10 -10 -9 -8 -8 -7 -7 -7 -7 -7 -7 -6 -6 -5 -5 -4 -4 -3 -2 ------- Run | Scr Mat Min Exi Min Mat Gar Fac Was Fac Gar Fac Gar Fac Gar Fac Ext Fac Gar Res Res Traps Triggered 53 | . 2 . . . 1 11 2 . . 5 1 7 . 7 . 1 1 11 . 4 Indirectly . | . . . . . . . . . . . . . . . . . . . . . Trap Hack Attempts . | . . . . . . . . . . . . . . . . . . . . . Triggered . | . . . . . . . . . . . . . . . . . . . . . Disarmed . | . . . . . . . . . . . . . . . . . . . . . Reprogrammed . | . . . . . . . . . . . . . . . . . . . . . Reused . | . . . . . . . . . . . . . . . . . . . . . Traps Extracted . | . . . . . . . . . . . . . . . . . . . . . Installed . | . . . . . . . . . . . . . . . . . . . . . Triggered . | . . . . . . . . . . . . . . . . . . . . . Machines | -11 -10 -10 -10 -9 -8 -8 -7 -7 -7 -7 -7 -7 -6 -6 -5 -5 -4 -4 -3 -2 ---------- Run | Scr Mat Min Exi Min Mat Gar Fac Was Fac Gar Fac Gar Fac Gar Fac Ext Fac Gar Res Res Machines Disabled 57 | . 2 . . . 2 4 4 . . 4 7 9 4 5 . 1 9 5 . 1 Max in Single Turn 4 | . 1 . . . 2 1 4 . . 1 4 2 4 1 . 1 2 1 . 1 Garrison Access 1 | . . . . . . . . . . . . . . . . . . . 1 . Garrison Relay 19 | . . . . . . 4 . . . 4 . 4 . 4 . . . 3 . . Phase Generator 1 | . . . . . . . . . . . . 1 . . . . . . . . Machines Sabotaged . | . . . . . . . . . . . . . . . . . . . . . Garrisons Compromised . | . . . . . . . . . . . . . . . . . . . . . Overloaded Fab Kills . | . . . . . . . . . . . . . . . . . . . . . Fab Network Shutdowns 1 | . . . . . . . . . . . 1 . . . . . . . . . Hacking | -11 -10 -10 -10 -9 -8 -8 -7 -7 -7 -7 -7 -7 -6 -6 -5 -5 -4 -4 -3 -2 --------- Run | Scr Mat Min Exi Min Mat Gar Fac Was Fac Gar Fac Gar Fac Gar Fac Ext Fac Gar Res Res Machines Accessed 43 | . 4 . 4 . 4 . 6 . 1 . 4 . 3 . 4 4 6 . 2 1 Terminals 24 | . 4 . . . 2 . 5 . . . 2 . 1 . 2 4 2 . 1 1 Fabricators 5 | . . . . . . . 1 . . . 1 . . . 2 . 1 . . . Repair Stations 2 | . . . . . . . . . . . . . 1 . . . 1 . . . Recycling Units . | . . . . . . . . . . . . . . . . . . . . . Scanalyzers 1 | . . . . . 1 . . . . . . . . . . . . . . . Garrison Access 7 | . . . . . 1 . . . 1 . 1 . 1 . . . 2 . 1 . Total Hacks 120 | . 14 . 5 . 18 . 23 . 2 . 6 . 5 . 12 11 19 . 4 1 Successful 60 | . 8 . 5 . 10 . 10 . 2 . 4 . 2 . 6 1 9 . 3 . Failed 60 | . 6 . . . 8 . 13 . . . 2 . 3 . 6 10 10 . 1 1 Catastrophic 10 | . 1 . . . 2 . . . . . 1 . . . 2 2 1 . . 1 Database Lockouts . | . . . . . . . . . . . . . . . . . . . . . Manual 61 | . 11 . 1 . 8 . 18 . . . 1 . 2 . 6 3 9 . 2 . Terminals 74 | . 14 . . . 9 . 20 . . . 2 . 2 . 6 11 7 . 2 1 Fabricators 14 | . . . . . . . 3 . . . 2 . . . 6 . 3 . . . Repair Stations 5 | . . . . . . . . . . . . . 2 . . . 3 . . . Recycling Units . | . . . . . . . . . . . . . . . . . . . . . Scanalyzers 8 | . . . . . 8 . . . . . . . . . . . . . . . Garrison Access 14 | . . . . . 1 . . . 2 . 2 . 1 . . . 6 . 2 . Terminal Hacks 18 | . 4 . 5 . 1 . 6 . . . . . . . 1 1 . . . . Record 5 | . . . 4 . 1 . . . . . . . . . . . . . . . Robot Analysis 8 | . 2 . . . . . 6 . . . . . . . . . . . . . Prototype ID Bank 1 | . 1 . . . . . . . . . . . . . . . . . . . Open Door 1 | . . . . . . . . . . . . . . . . 1 . . . . Fabricator Index 1 | . . . . . . . . . . . . . . . 1 . . . . . Dispatch Records 1 | . 1 . . . . . . . . . . . . . . . . . . . EX-Prototype ID Bank 1 | . . . 1 . . . . . . . . . . . . . . . . . Fabricator Hacks 7 | . . . . . . . . . . . 2 . . . 3 . 2 . . . Load Schematic 4 | . . . . . . . . . . . 1 . . . 2 . 1 . . . Build 3 | . . . . . . . . . . . 1 . . . 1 . 1 . . . Repair Station Hacks 2 | . . . . . . . . . . . . . 1 . . . 1 . . . Scan Component 2 | . . . . . . . . . . . . . 1 . . . 1 . . . Recycling Unit Hacks . | . . . . . . . . . . . . . . . . . . . . . Scanalyzer 7 | . . . . . 7 . . . . . . . . . . . . . . . Insert Component 4 | . . . . . 4 . . . . . . . . . . . . . . . Analyze 3 | . . . . . 3 . . . . . . . . . . . . . . . Garrison Access Hacks 12 | . . . . . 1 . . . 2 . 2 . 1 . . . 4 . 2 . Unlock Access 5 | . . . . . 1 . . . 1 . 1 . 1 . . . 1 . . . Seal Access 1 | . . . . . . . . . . . . . . . . . . . 1 . Coupler Status 6 | . . . . . . . . . 1 . 1 . . . . . 3 . 1 . Unauthorized Hacks 14 | . 4 . . . 1 . 4 . . . . . . . 2 . 2 . 1 . Terminals 14 | . 4 . . . 1 . 4 . . . . . . . 2 . 2 . 1 . Botnet 13 | . 4 . . . 1 . 4 . . . . . . . 1 . 2 . 1 . Detonate 1 | . . . . . . . . . . . . . . . 1 . . . . . Fabricators . | . . . . . . . . . . . . . . . . . . . . . Repair Stations . | . . . . . . . . . . . . . . . . . . . . . Recycling Units . | . . . . . . . . . . . . . . . . . . . . . Scanalyzers . | . . . . . . . . . . . . . . . . . . . . . Garrison Access . | . . . . . . . . . . . . . . . . . . . . . Data Cores Recovered . | . . . . . . . . . . . . . . . . . . . . . Used . | . . . . . . . . . . . . . . . . . . . . . Hacking Detections 36 | . 4 . . . 2 . 6 . . . 4 . 3 . 4 4 6 . 2 1 Full Trace Events 7 | . . . . . . . 1 . . . . . 1 . 2 2 1 . . . Feedback Events . | . . . . . . . . . . . . . . . . . . . . . Feedback Blocked . | . . . . . . . . . . . . . . . . . . . . . Robot Schematics Acquired . | . . . . . . . . . . . . . . . . . . . . . Robots Built . | . . . . . . . . . . . . . . . . . . . . . Matter . | . . . . . . . . . . . . . . . . . . . . . Time . | . . . . . . . . . . . . . . . . . . . . . Total Robot Build Rating . | . . . . . . . . . . . . . . . . . . . . . Part Schematics Acquired 3 | . . . . . 3 . . . . . . . . . . . . . . . Parts Built 3 | . . . . . . . . . . . 1 . . . 1 . 1 . . . Matter 306 | . . . . . . . . . . . 102 . . . 102 . 102 . . . Time 153 | . . . . . . . . . . . 51 . . . 51 . 51 . . . Total Part Build Rating 3 | . . . . . . . . . . . 1 . . . 1 . 1 . . . Parts Repaired . | . . . . . . . . . . . . . . . . . . . . . Time . | . . . . . . . . . . . . . . . . . . . . . Parts Recycled . | . . . . . . . . . . . . . . . . . . . . . Recycled Matter . | . . . . . . . . . . . . . . . . . . . . . Retrieved Matter . | . . . . . . . . . . . . . . . . . . . . . Retrieved Components . | . . . . . . . . . . . . . . . . . . . . . Parts Scanalyzed 3 | . . . . . 3 . . . . . . . . . . . . . . . Part Schematics Acquired 3 | . . . . . 3 . . . . . . . . . . . . . . . Parts Damaged . | . . . . . . . . . . . . . . . . . . . . . Bothacking | -11 -10 -10 -10 -9 -8 -8 -7 -7 -7 -7 -7 -7 -6 -6 -5 -5 -4 -4 -3 -2 ------------ Run | Scr Mat Min Exi Min Mat Gar Fac Was Fac Gar Fac Gar Fac Gar Fac Ext Fac Gar Res Res Used RIF Installer 5 | . . . . . . 1 . . . 1 . 1 . 1 . . . 1 . . Alert ID Control 1 | . . . . . . . . . . 1 . . . . . . . . . . Program Shield 1 | . . . . . . . . . . . . . . 1 . . . . . . Autooverride 1 | . . . . . . . . . . . . 1 . . . . . . . . Autoassimilate 1 | . . . . . . . . . . . . . . . . . . 1 . . Robots Hacked 61 | . . . . . . 1 1 6 . 6 . 3 3 4 10 11 7 2 . 7 Non-combat 5 | . . . . . . . 1 . . . . . 3 . 1 . . . . . Combat 56 | . . . . . . 1 . 6 . 6 . 3 . 4 9 11 7 2 . 7 Autooverrided 7 | . . . . . . . . . . . . 1 . . . 3 1 1 . 1 Autoassimilated 1 | . . . . . . . . . . . . . . . . . . . . 1 Robot Hacks Applied 59 | . . . . . . 1 1 6 . 6 . 2 7 5 10 9 6 1 . 5 no_distress 1 | . . . . . . . . . . . . . . . 1 . . . . . start_evac 1 | . . . . . . . . . . . . . 1 . . . . . . . find_chute 2 | . . . . . . . 1 . . . . . 1 . . . . . . . purge_threat 5 | . . . . . . . . . . . . . 5 . . . . . . . ignore_targets 6 | . . . . . . . . 6 . . . . . . . . . . . . scatter_targeting 2 | . . . . . . . . . . . . . . . . 2 . . . . link_complan 1 | . . . . . . . . . . . . . . . . 1 . . . . disrupt_area 1 | . . . . . . . . . . . . . . . . . . . . 1 amplify_resonance 17 | . . . . . . . . . . 1 . 2 . 1 3 5 1 1 . 3 wipe_record 5 | . . . . . . . . . . . . . . . 5 . . . . . disable_weapons 1 | . . . . . . . . . . . . . . . . . 1 . . . reboot_system 1 | . . . . . . . . . . . . . . 1 . . . . . . overwrite_iff 8 | . . . . . . 1 . . . 1 . . . 2 . 1 2 . . 1 streamctrl_high 3 | . . . . . . . . . . 1 . . . 1 . . 1 . . . formatsys_high 5 | . . . . . . . . . . 3 . . . . 1 . 1 . . . Relay Couplers Released 75 | . . . . . . 15 . . . 14 . 15 . 16 . . . 15 . . Machine Destruction 75 | . . . . . . 15 . . . 14 . 15 . 16 . . . 15 . . Attached 32 | . . . . . . 1 1 . . 8 . 4 2 6 2 2 2 1 1 2 Robots Rewired 4 | . . . . . . . . . . . . . . . . . . 4 . . Allies Hacked 1 | . . . . . . . . . . . . . . . . . 1 . . . Hacks Repelled . | . . . . . . . . . . . . . . . . . . . . . Allies | -11 -10 -10 -10 -9 -8 -8 -7 -7 -7 -7 -7 -7 -6 -6 -5 -5 -4 -4 -3 -2 -------- Run | Scr Mat Min Exi Min Mat Gar Fac Was Fac Gar Fac Gar Fac Gar Fac Ext Fac Gar Res Res Total Allies 37 | . . 1 . 2 . 1 . . . 5 3 1 . 3 1 7 5 5 . 3 Largest Group 4 | . . 1 . 2 1 1 . . . 3 3 4 . 1 1 3 2 3 . 1 Highest-Rated Group 188 | . . 31 . 39 31 29 . . . 96 93 109 . 41 29 188 156 138 . 58 Highest-Rated Ally 156 | . . 31 . 31 31 29 . . . 32 31 31 . 41 29 156 156 46 . 58 Total Orders 2 | . . . . . . . . . . . . . . . . . 2 . . . GUARD 1 | . . . . . . . . . . . . . . . . . 1 . . . EXPLORE 1 | . . . . . . . . . . . . . . . . . 1 . . . Ally Attacks 240 | . . 5 . 7 2 5 . . . 23 . 23 23 11 6 76 28 18 . 13 Total Damage 6298 | . . 103 . 85 42 38 . . . 864 . 363 1086 381 111 1593 687 347 . 598 Kills 46 | . . 5 . 2 . . . . . 7 . 6 5 2 . 12 5 1 . 1 Allies Corrupted 1 | . . . . . . . . . . . . . . . . . . . . 1 Allies Melted . | . . . . . . . . . . . . . . . . . . . . . Turrets Deployed 3 | . . . . . . . . . . . . . 1 . . . . . . 2 Intel | -11 -10 -10 -10 -9 -8 -8 -7 -7 -7 -7 -7 -7 -6 -6 -5 -5 -4 -4 -3 -2 ------- Run | Scr Mat Min Exi Min Mat Gar Fac Was Fac Gar Fac Gar Fac Gar Fac Ext Fac Gar Res Res Robot Analysis Total 8 | . 2 . . . . . 6 . . . . . . . . . . . . . Derelict Logs Recovered 1 | . . . . 1 . . . . . . . . . . . . . . . . Drone Launches 2 | . . . . . . . . . . . . . . . . . 2 . . . Drone Recoveries . | . . . . . . . . . . . . . . . . . . . . . Exploration | -11 -10 -10 -10 -9 -8 -8 -7 -7 -7 -7 -7 -7 -6 -6 -5 -5 -4 -4 -3 -2 ------------- Run | Scr Mat Min Exi Min Mat Gar Fac Was Fac Gar Fac Gar Fac Gar Fac Ext Fac Gar Res Res Turns Passed 32336 | . 1940 504 916 1204 1609 1595 1747 1051 36 2587 433 2165 1222 2289 1771 1083 2522 2817 1028 3817 Spaces Moved 15150 | 1 981 268 487 459 715 744 783 415 19 1277 224 1017 519 1227 803 505 1131 1416 453 1706 Core 108 | . . . . . . . . . . . . . 1 . . . . . . 107 Treads 6565 | . . . . . . 57 783 415 19 1277 224 195 277 . . 83 811 564 261 1599 Legs 7953 | 1 981 268 487 459 715 687 . . . . . 822 241 1227 279 422 320 852 192 . Wheels 524 | . . . . . . . . . . . . . . . 524 . . . . . Hover . | . . . . . . . . . . . . . . . . . . . . . Flight . | . . . . . . . . . . . . . . . . . . . . . Fastest Speed 50 | 120 120 180 180 210 150 150 180 160 180 160 160 150 150 150 130 150 150 150 150 50 Average Speed 165 | 120 162 180 182 210 173 176 180 179 180 174 160 177 173 152 145 154 160 165 161 144 Slowest Speed 1600 | 120 240 180 210 210 180 260 180 180 180 220 160 360 1600 330 300 200 180 300 300 170 Overloaded Moves . | . . . . . . . . . . . . . . . . . . . . . Propulsion Burnouts . | . . . . . . . . . . . . . . . . . . . . . Robots Hopped . | . . . . . . . . . . . . . . . . . . . . . Cave-ins Triggered . | . . . . . . . . . . . . . . . . . . . . . Exploration Rate (%) 45 | 2 60 59 64 58 26 86 21 99 1 74 9 98 15 87 13 62 20 73 9 29 Regions Visited 20 Branch Regions 4 Pre-discovered Areas 1 | . . . 1 . . . . . . . . . . . . . . . . . Known Exits Taken 6 | . . . . . 1 . . . 1 . 1 . 1 . . . 1 . 1 . Unknown Exits Taken 7 | 1 1 1 1 1 . . . . . . . . . . 1 1 . . . . Scrap Searched 3 | . . 1 . 2 . . . . . . . . . . . . . . . . Spaces Dug 85 | . 2 . . . . . . . . . . 5 5 . 14 . . 10 . 49 Terrain Destroyed 987 | . 11 . . 21 13 77 4 . . 17 27 148 112 51 38 32 60 74 6 296 Melee 15 | . 2 . . . . . . . . . . . . . 13 . . . . . Projectile 128 | . . . . . 5 . . . . 1 . 1 . 1 10 12 12 6 6 74 AOE 844 | . 9 . . 21 8 77 4 . . 16 27 147 112 50 15 20 48 68 . 222 Actions | -11 -10 -10 -10 -9 -8 -8 -7 -7 -7 -7 -7 -7 -6 -6 -5 -5 -4 -4 -3 -2 --------- Run | Scr Mat Min Exi Min Mat Gar Fac Was Fac Gar Fac Gar Fac Gar Fac Ext Fac Gar Res Res Total 20295 | . 1197 281 521 683 959 942 1051 570 20 1538 291 1258 715 1541 1197 736 1632 1742 647 2774 Wait 1741 | . 20 1 3 193 69 17 170 16 . 101 56 78 20 88 139 17 209 14 29 501 Move 15135 | . 980 267 486 458 715 742 783 414 19 1276 224 1016 519 1226 802 504 1131 1415 452 1706 Hop . | . . . . . . . . . . . . . . . . . . . . . Pick Up 358 | . 41 2 9 4 29 18 18 4 . 11 . 2 14 23 19 28 33 46 18 39 Fast Attach 267 | . 10 1 4 2 13 6 4 5 . 14 1 18 19 14 18 10 29 21 26 52 Attach 173 | . 4 . . 3 6 13 5 2 . 2 . . 16 11 15 13 17 25 5 36 Detach 75 | . 1 . . . 3 2 . 3 . 1 . 2 10 5 5 7 2 8 5 21 Swap 351 | . 23 2 6 4 14 12 11 2 1 30 4 20 15 30 38 32 34 20 17 36 Drop 522 | . 32 1 13 4 31 20 21 15 . 28 2 18 10 31 19 33 57 49 47 91 Fire 1289 | . 79 7 . 11 79 61 39 6 . 49 4 64 90 66 114 87 119 86 48 280 Melee 189 | . 7 . . 4 . 1 . 103 . 15 . 5 . 13 20 . . 21 . . Ram 9 | . . . . . . . . . . . . . . . 8 . . . . 1 Kick . | . . . . . . . . . . . . . . . . . . . . . Crush 11 | . . . . . . . . . . . . . 2 . . . 1 3 . 5 Escape Stasis 162 | . . . . . . 50 . . . 10 . 35 . 34 . 5 . 22 . 6 Rewire 13 | . . . . . . . . . . 1 . . . . . . . 12 . . Trap . | . . . . . . . . . . . . . . . . . . . . . Miscellaneous . | . . . . . . . . . . . . . . . . . . . . . Route ------- -11/Scrapyard -10/Materials (discovered 3 exits: [*Mat] / [*Min x2]) -10/Mines -10/Exiles (discovered 2 exits: [*Min x2]) -9/Mines -8/Materials (discovered 2 exits: *Fac / Gar) -8/Garrison (discovered 3 exits: *Fac x3) -7/Factory -7/Waste -7/Factory -7/Garrison (discovered 3 exits: *Fac x3) -7/Factory -7/Garrison (discovered 3 exits: *Fac x3) -6/Factory -6/Garrison (discovered 3 exits: *Fac x3) -5/Factory (discovered 3 exits: *Fac / [*Upp] / *Ext) -5/Extension (discovered 2 exits: *Fac / [*Cet]) -4/Factory (discovered 2 exits: *Res / Gar) -4/Garrison (discovered 3 exits: *Res x3) -3/Research -2/Research History --------- Turn | Location | Event 1 | -11/Scrapyard | Discovered new exit (range 0) 1 | -11/Scrapyard | Entered Materials 306 | -10/Materials | Build established: Mutant 382 | -10/Materials | Discovered new exit (range 16) 688 | -10/Materials | Discovered new exit (range 12) 1652 | -10/Materials | Discovered new exit (range 15) 1941 | -10/Materials | Entered Mines 1978 | -10/Mines | Met a Derelict bent on vengeance 2097 | -10/Mines | Received a Mining Laser from a helpful Derelict 2438 | -10/Mines | Deemed a non-threat by the Exiles lab entrance 2438 | -10/Mines | Discovered new exit (range 5) 2445 | -10/Mines | Entered Exiles 2472 | -10/Exiles | Discovered new exit (range 15) 2489 | -10/Exiles | Met 8R-AWN 2519 | -10/Exiles | Met EX-HEX 2584 | -10/Exiles | Met EX-BIN 2600 | -10/Exiles | Build established: Scavenger-Mutant 2609 | -10/Exiles | Met EX-DEC 2616 | -10/Exiles | Learned location of Zion (-6) 2771 | -10/Exiles | Aligned with FarCom system 2773 | -10/Exiles | Given EX-Vault access code 2816 | -10/Exiles | Opened EX-Vault 2828 | -10/Exiles | Found Prototype Energy Cannon 2828 | -10/Exiles | Identified YOLO Cannon 2924 | -10/Exiles | Warned to stay clear of 0b10 Research branches 3061 | -10/Exiles | Found Deploy-a-Sentry 3064 | -10/Exiles | Found Deploy-a-Sentry 3076 | -10/Exiles | Found Deploy-a-Sentry 3340 | -10/Exiles | Discovered new exit (range 10) 3361 | -10/Exiles | Left Exiles lab with Deploy-a-Sentry 3361 | -10/Exiles | Entered Mines 3362 | -9/Mines | Assembled infested the area 3383 | -9/Mines | Core integrity fell below 50% 3398 | -9/Mines | Core integrity fell below 20% 3418 | -9/Mines | Lost 3 parts (1p2w) 3604 | -9/Mines | Build established: Hauler-Mutant 4317 | -9/Mines | Learned 8 Materials zone layouts 4534 | -9/Mines | Discovered new exit (range 10) 4565 | -9/Mines | Entered Materials 4565 | -8/Materials | Accompanied by 1 ally 4565 | -8/Materials | Evolved 4 slots: Propulsion x1, Utility x3 4566 | -8/Materials | Identified exit to Factory 4570 | -8/Materials | Led the pair of lost Derelicts to an unsafe place 4692 | -8/Materials | Lost 3 parts (1n1u1w) 4873 | -8/Materials | Build established: Scavenger-Mutant 5933 | -8/Materials | Build established: Hauler-Mutant 6065 | -8/Materials | Garrison activated, responded to threat 6174 | -8/Materials | Identified exit to Garrison 6174 | -8/Materials | Entered Garrison 6248 | -8/Garrison | Triggered checkpoint 6296 | -8/Garrison | Garrison Relay disabled 6384 | -8/Garrison | Triggered checkpoint 6430 | -8/Garrison | Triggered checkpoint 6489 | -8/Garrison | Destroyed 7 combat bots 6512 | -8/Garrison | Garrison Relay disabled 6619 | -8/Garrison | Discovered exit to Factory (range 14) 6764 | -8/Garrison | Triggered checkpoint 6846 | -8/Garrison | Discovered exit to Factory (range 14) 6883 | -8/Garrison | Installed Relay Interface Framework 6964 | -8/Garrison | Triggered checkpoint 6979 | -8/Garrison | Core integrity fell below 50% 7021 | -8/Garrison | Garrison Relay disabled 7183 | -8/Garrison | Build established: Bothacker-Mutant 7285 | -8/Garrison | Lost 4 parts (1n3w) 7320 | -8/Garrison | Discovered exit to Factory (range 12) 7412 | -8/Garrison | Triggered checkpoint 7504 | -8/Garrison | Build established: Hauler-Mutant 7769 | -8/Garrison | Entered Factory 7769 | -7/Factory | Evolved 2 slots: Propulsion x1, Utility x1 8220 | -7/Factory | Discovered new exit (range 14) 9310 | -7/Factory | Build established: Bothacker-Mutant 9516 | -7/Factory | Sucked down chute 9516 | -7/Factory | Entered Waste 9524 | -7/Waste | Spotted C-40 Crusher 9531 | -7/Waste | EMP discharged 9536 | -7/Waste | Spotted C-40 Crusher 9546 | -7/Waste | Spotted C-40 Crusher 9558 | -7/Waste | Spotted C-40 Crusher 9631 | -7/Waste | EMP discharged 9631 | -7/Waste | System corruption reached 10% 9654 | -7/Waste | Destroyed C-40 Crusher 9666 | -7/Waste | Found Damper Plating 9681 | -7/Waste | Destroyed C-40 Crusher 9683 | -7/Waste | Spotted C-40 Crusher 9691 | -7/Waste | Found Damper Plating 9731 | -7/Waste | EMP discharged 9738 | -7/Waste | Spotted C-40 Crusher 9831 | -7/Waste | EMP discharged 9931 | -7/Waste | EMP discharged 10023 | -7/Waste | Destroyed C-40 Crusher 10031 | -7/Waste | EMP discharged 10034 | -7/Waste | Found Damper Plating 10069 | -7/Waste | Destroyed C-40 Crusher 10095 | -7/Waste | Destroyed C-40 Crusher 10131 | -7/Waste | EMP discharged 10153 | -7/Waste | Destroyed C-40 Crusher 10231 | -7/Waste | EMP discharged 10331 | -7/Waste | EMP discharged 10379 | -7/Waste | Discovered new exit (range 16) 10431 | -7/Waste | EMP discharged 10531 | -7/Waste | EMP discharged 10567 | -7/Waste | Entered Factory 10603 | -7/Factory | Identified exit to Garrison 10603 | -7/Factory | Entered Garrison 10692 | -7/Garrison | Triggered checkpoint 10791 | -7/Garrison | Triggered checkpoint 10948 | -7/Garrison | Triggered checkpoint 10950 | -7/Garrison | Triggered checkpoint 11088 | -7/Garrison | Triggered checkpoint 11131 | -7/Garrison | Garrison Relay disabled 11352 | -7/Garrison | Discovered new exit (range 14) 11392 | -7/Garrison | Expanded RIF knowledge: Alert ID Control 11462 | -7/Garrison | Triggered checkpoint 11496 | -7/Garrison | Garrison Relay disabled 11767 | -7/Garrison | Discovered new exit (range 10) 11814 | -7/Garrison | Triggered checkpoint 11862 | -7/Garrison | Triggered checkpoint 11948 | -7/Garrison | Garrison Relay disabled 12156 | -7/Garrison | Discovered new exit (range 14) 12308 | -7/Garrison | Triggered checkpoint 12361 | -7/Garrison | Garrison Relay disabled 13190 | -7/Garrison | Entered Factory 13575 | -7/Factory | Local fabrication network quarantined 13581 | -7/Factory | Fabricated Hcp. Storage Unit (x1) 13581 | -7/Factory | Allied Derelicts emerged from ambush trap array 13590 | -7/Factory | First assault squad dispatched 13622 | -7/Factory | Identified exit to Garrison 13623 | -7/Factory | Entered Garrison 13623 | -7/Garrison | Accompanied by 3 allies 13631 | -7/Garrison | Expanded RIF knowledge: Autooverride 13676 | -7/Garrison | Triggered checkpoint 13706 | -7/Garrison | Garrison Relay disabled 13779 | -7/Garrison | Triggered checkpoint 13779 | -7/Garrison | Triggered checkpoint 13812 | -7/Garrison | Triggered checkpoint 14202 | -7/Garrison | Discovered new exit (range 9) 14274 | -7/Garrison | Triggered checkpoint 14355 | -7/Garrison | Garrison Relay disabled 14524 | -7/Garrison | Triggered checkpoint 14644 | -7/Garrison | Triggered checkpoint 14676 | -7/Garrison | Garrison Relay disabled 14713 | -7/Garrison | Discovered new exit (range 13) 15194 | -7/Garrison | Phase Generator disabled 15401 | -7/Garrison | Discovered new exit (range 14) 15505 | -7/Garrison | Triggered checkpoint 15556 | -7/Garrison | Garrison Relay disabled 15788 | -7/Garrison | Entered Factory 15788 | -6/Factory | Evolved 2 slots: Utility x2 16138 | -6/Factory | First assault squad dispatched 16275 | -6/Factory | Garrison activated, responded to threat 16297 | -6/Factory | DAS Turret deployed 16310 | -6/Factory | Core integrity fell below 50% 16325 | -6/Factory | Lost 12 parts (2p2n4u4w) 17010 | -6/Factory | Identified exit to Garrison 17010 | -6/Factory | Entered Garrison 17052 | -6/Garrison | Triggered checkpoint 17120 | -6/Garrison | Garrison Relay disabled 17206 | -6/Garrison | Triggered checkpoint 17206 | -6/Garrison | Triggered checkpoint 17502 | -6/Garrison | Discovered new exit (range 12) 17596 | -6/Garrison | Triggered checkpoint 17652 | -6/Garrison | Garrison Relay disabled 17728 | -6/Garrison | Triggered checkpoint 17872 | -6/Garrison | Discovered new exit (range 9) 17920 | -6/Garrison | Triggered checkpoint 17968 | -6/Garrison | Garrison Relay disabled 18165 | -6/Garrison | Triggered checkpoint 18206 | -6/Garrison | Lost 4 parts (2n2u) 18208 | -6/Garrison | Destroyed 7 combat bots 18341 | -6/Garrison | Discovered new exit (range 15) 18418 | -6/Garrison | Triggered checkpoint 18493 | -6/Garrison | Garrison Relay disabled 19293 | -6/Garrison | Expanded RIF knowledge: Program Shield 19299 | -6/Garrison | Entered Factory 19299 | -5/Factory | Evolved 2 slots: Utility x2 19582 | -5/Factory | Build established: Botlord-Mutant 19787 | -5/Factory | Discovered new exit (range 5) 19899 | -5/Factory | First assault squad dispatched 19928 | -5/Factory | Fabricated Hcp. Storage Unit (x1) 19998 | -5/Factory | System corruption reached 10% 20027 | -5/Factory | Lost 3 parts (2u1w) 20351 | -5/Factory | Lost 4 parts (3u1w) 20723 | -5/Factory | Build established: Bothacker-Mutant 20824 | -5/Factory | Discovered new exit (range 15) 21052 | -5/Factory | Discovered new exit (range 13) 21070 | -5/Factory | Entered Extension 21083 | -5/Extension | Disrupted transfer network 21349 | -5/Extension | Rescued a captive Derelict 21359 | -5/Extension | Rescued a captive Derelict 21502 | -5/Extension | Spotted B-75 Beast 21533 | -5/Extension | Spotted B-75 Beast 21555 | -5/Extension | Destroyed B-75 Beast 21610 | -5/Extension | Rescued A7 21676 | -5/Extension | Allies destroyed B-75 Beast 21733 | -5/Extension | Lost 5 parts (3n1u1w) 21970 | -5/Extension | First assault squad dispatched 22066 | -5/Extension | Discovered new exit (range 16) 22066 | -5/Extension | Discovered new exit (range 16) 22153 | -5/Extension | Entered Factory 22153 | -4/Factory | Accompanied by 1 ally 22153 | -4/Factory | Evolved 2 slots: Utility x1, Weapon x1 22654 | -4/Factory | Fabricated Hcp. Storage Unit (x1) 23119 | -4/Factory | Lost 3 parts (1u2w) 23220 | -4/Factory | Found Hvy. Reflective Plating 23448 | -4/Factory | Build established: Scavenger-Gunner 24153 | -4/Factory | First assault squad dispatched 24590 | -4/Factory | Found Unknown Device 24590 | -4/Factory | Identified Launcher Loader 24661 | -4/Factory | System corruption reached 10% 24668 | -4/Factory | Discovered new exit (range 9) 24675 | -4/Factory | Identified exit to Garrison 24675 | -4/Factory | Entered Garrison 24702 | -4/Garrison | Spotted B-86 Titan 24708 | -4/Garrison | Triggered checkpoint 24767 | -4/Garrison | Core integrity fell below 50% 24781 | -4/Garrison | Destroyed B-86 Titan 24830 | -4/Garrison | Lost 16 parts (2p3n6u5w) 24993 | -4/Garrison | Lost 4 parts (1u3w) 25130 | -4/Garrison | Triggered checkpoint 25155 | -4/Garrison | Build established: Scavenger-Mutant 25324 | -4/Garrison | Garrison Relay disabled 25616 | -4/Garrison | Triggered checkpoint 25678 | -4/Garrison | Triggered checkpoint 25690 | -4/Garrison | Build established: Scavenger-Gunner 25720 | -4/Garrison | Triggered checkpoint 25754 | -4/Garrison | Discovered new exit (range 8) 25792 | -4/Garrison | Triggered checkpoint 25810 | -4/Garrison | Garrison Relay disabled 26094 | -4/Garrison | Build established: Botlord-Mutant 26286 | -4/Garrison | Triggered checkpoint 26476 | -4/Garrison | Garrison Relay disabled 26515 | -4/Garrison | Discovered new exit (range 15) 26601 | -4/Garrison | Build established: Botlord-Gunner 26761 | -4/Garrison | Discovered new exit (range 9) 26780 | -4/Garrison | Expanded RIF knowledge: Autoassimilate 27492 | -4/Garrison | Entered Research 27492 | -3/Research | Evolved 2 slots: Power x2 27568 | -3/Research | Garrison activated, responded to threat 27697 | -3/Research | Garrison activated, responded to threat 28254 | -3/Research | Found Prototype Processor 28254 | -3/Research | Identified Spectral Analyzer 28428 | -3/Research | Discovered new exit (range 12) 28465 | -3/Research | Identified exit to Research 28492 | -3/Research | First assault squad dispatched 28520 | -3/Research | Entered another Research area 28520 | -2/Research | Evolved 2 slots: Propulsion x2 28564 | -2/Research | Build established: Bothacker-Gunner 29412 | -2/Research | Build established: Bothacker-Tank 29438 | -2/Research | Found Prototype Launcher 29438 | -2/Research | Identified Gui. Micro-nuke Launcher 29452 | -2/Research | Found Gui. Micro-nuke Launcher 30270 | -2/Research | First assault squad dispatched 30339 | -2/Research | Found Quantum Capacitor 30617 | -2/Research | System corruption reached 10% 30799 | -2/Research | Garrison activated, responded to threat 30928 | -2/Research | Destroyed 7 combat bots 30991 | -2/Research | Found Prototype Device 30991 | -2/Research | Identified Exp. Shock Absorption System 31106 | -2/Research | Build established: Bothacker-Gunner 31457 | -2/Research | Destroyed 9 combat bots 31542 | -2/Research | Destroyed 8 combat bots 31586 | -2/Research | DAS Turret deployed 31611 | -2/Research | DAS Turret deployed 31942 | -2/Research | High security lockdown imminent 32022 | -2/Research | High security lockdown engaged 32173 | -2/Research | Destroyed Executioner 32178 | -2/Research | Scanned by Researcher 32180 | -2/Research | Destroyed Investigator 32229 | -2/Research | Destroyed 7 combat bots 32283 | -2/Research | Released all parts (10) 32287 | -2/Research | Core integrity fell below 50% 32295 | -2/Research | Core integrity fell below 20% 32299 | -2/Research | Destroyed 7 combat bots 32313 | -2/Research | Lost 10 parts (3p3n1u3w) 32337 | -2/Research | Destroyed by S-43 Plague with Heavy Machine Gun Last Messages --------------- 32278_ B-74 Champion destroyed. 32280_ Enh. Nova Cannon destroyed. 32281_ L-61 Swordsman knocked back. 32282_ Adv. Medium Treads destroyed. 32282_ Tri-rail Accelerator destroyed. 32283_ Released Quantum Capacitor. 32283_ Released Lgt. Quantum Reactor. 32283_ Released Adv. Matter Compressor. 32283_ Released Adv. Target Analyzer. 32283_ Released Adv. Coolant Injector. 32283_ Released Hcp. Storage Unit. 32283_ Released Adv. Signal Interpreter. 32283_ Released Adv. Heat Sink. 32286_ The unstable cave ceiling collapses. 32287_ Slammed into M-36 Artificer. 32292_ ALERT: Heavy assault forces dispatched. 32293_ FN4MP9UZ|YPB4WGAL:SSC